fUST/lending_fUST_20260530
["ID","MTS","AMOUNT","RATE_DAILY","PERIOD"]
[423407783,1780086641000,-500.0,9.999e-05,2]
[423407789,1780086641000,-652.94,9.999e-05,2]
[423407781,1780086641000,-12161.88,9.998e-05,2]
[423407782,1780086641000,-2688.69,9.998e-05,2]
[423407784,1780086641000,-500.0,9.999e-05,2]
[423407786,1780086641000,-674.75,9.999e-05,2]
[423407785,1780086641000,-992.15,9.999e-05,2]
[423407791,1780086641000,-2304.8,9.999e-05,2]
[423407790,1780086641000,-766.88,9.999e-05,2]
[423407797,1780086641000,-350.82408498,0.0001,2]
[423407793,1780086641000,-500.0,9.999e-05,2]
[423407801,1780086641000,-151.0,0.0001,2]
[423407787,1780086641000,-500.0,9.999e-05,2]
[423407794,1780086641000,-500.0,9.999e-05,2]
[423407810,1780086641000,-151.0,0.0001,2]
[423407808,1780086641000,-151.0,0.0001,2]
[423407807,1780086641000,-151.0,0.0001,2]
[423407805,1780086641000,-151.0,0.0001,2]
[423407792,1780086641000,-1631.26,9.999e-05,2]
[423407806,1780086641000,-151.0,0.0001,2]
[423407803,1780086641000,-151.0,0.0001,2]
[423407802,1780086641000,-151.0,0.0001,2]
[423407799,1780086641000,-151.0,0.0001,2]
[423407796,1780086641000,-3540.10176566,0.0001,2]
[423407800,1780086641000,-151.0,0.0001,2]
[423407798,1780086641000,-160.0,0.0001,2]
[423407795,1780086641000,-35722.52033963,0.0001,2]
[423407804,1780086641000,-151.0,0.0001,2]
[423407887,1780086642000,-674.75,0.00010547,2]
[423407889,1780086642000,-500.0,0.00010547,2]
[423407883,1780086642000,-2688.69,0.00010546,2]
[423407881,1780086642000,-500.0,0.00010546,2]
[423407882,1780086642000,-12161.88,0.00010546,2]
[423407868,1780086642000,-500.0,0.000104,2]
[423407890,1780086642000,-652.94,0.00010547,2]
[423407879,1780086642000,-500.0,0.00010546,2]
[423407876,1780086642000,-1566.91,0.00010546,2]
[423407875,1780086642000,-500.0,0.00010546,2]
[423407874,1780086642000,-720.0,0.00010439,2]
[423407880,1780086642000,-500.0,0.00010546,2]
[423407888,1780086642000,-500.0,0.00010547,2]
[423407893,1780086642000,-1631.26,0.00010547,2]
[423407884,1780086642000,-500.0,0.00010547,2]
[423407885,1780086642000,-500.0,0.00010547,2]
[423407892,1780086642000,-2304.8,0.00010547,2]
[423407891,1780086642000,-766.88,0.00010547,2]
[423407894,1780086642000,-500.0,0.00010547,2]
[423407895,1780086642000,-500.0,0.00010547,2]
[423407898,1780086642000,-1562.37,0.00010674,2]
[423407897,1780086642000,-693.71,0.00010674,2]
[423407899,1780086642000,-500.0,0.00010674,2]
[423407901,1780086642000,-500.0,0.00010674,2]
[423407900,1780086642000,-557.81,0.00010674,2]
[423407902,1780086642000,-751.15,0.00010674,2]
[423407873,1780086642000,-500.0,0.00010401,2]
[423407886,1780086642000,-992.15,0.00010547,2]
[423407872,1780086642000,-1274.28,0.000104,2]
[423407865,1780086642000,-500.0,0.000104,2]
[423407866,1780086642000,-622.62,0.000104,2]
[423407904,1780086642000,-500.0,0.00010674,2]
[423407851,1780086642000,-500.0,0.00010273,2]
[423407852,1780086642000,-652.94,0.00010273,2]
[423407843,1780086642000,-6657.82359077,0.00010272,2]
[423407844,1780086642000,-5504.05640923,0.00010272,2]
[423407847,1780086642000,-500.0,0.00010273,2]
[423407848,1780086642000,-992.15,0.00010273,2]
[423407845,1780086642000,-2688.69,0.00010272,2]
[423407846,1780086642000,-500.0,0.00010273,2]
[423407850,1780086642000,-500.0,0.00010273,2]
[423407849,1780086642000,-674.75,0.00010273,2]
[423407853,1780086642000,-766.88,0.00010273,2]
[423407854,1780086642000,-2304.8,0.00010273,2]
[423407869,1780086642000,-1027.08,0.000104,2]
[423407855,1780086642000,-1631.26,0.00010273,2]
[423407861,1780086642000,-557.81,0.000104,2]
[423407857,1780086642000,-500.0,0.00010273,2]
[423407862,1780086642000,-500.0,0.000104,2]
[423407863,1780086642000,-751.15,0.000104,2]
[423407860,1780086642000,-500.0,0.000104,2]
[423407859,1780086642000,-1562.37,0.000104,2]
[423407864,1780086642000,-500.0,0.000104,2]
[423407858,1780086642000,-693.71,0.000104,2]
[423407867,1780086642000,-500.93,0.000104,2]
[423407877,1780086642000,-500.0,0.00010546,2]
[423407870,1780086642000,-546.57119145,0.000104,2]
[423407878,1780086642000,-513.74,0.00010546,2]
[423407871,1780086642000,-650.44,0.000104,2]
[423407856,1780086642000,-500.0,0.00010273,2]
[423407905,1780086642000,-622.62,0.00010674,2]
[423407896,1780086642000,-557.84615169,0.00010552,2]
[423407908,1780086642000,-1027.08,0.00010674,2]
[423407936,1780086642000,-693.71,0.00010948,2]
[423407935,1780086642000,-500.0,0.00010821,2]
[423407954,1780086642000,-500.0,0.00011094,2]
[423407956,1780086642000,-1566.91,0.00011094,2]
[423407958,1780086642000,-500.0,0.00011094,2]
[423407961,1780086642000,-500.0,0.00011094,2]
[423407960,1780086642000,-513.74,0.00011094,2]
[423407947,1780086642000,-500.93,0.00010948,2]
[423407944,1780086642000,-622.62,0.00010948,2]
[423407948,1780086642000,-500.0,0.00010948,2]
[423407950,1780086642000,-650.44,0.00010948,2]
[423407951,1780086642000,-1274.28,0.00010948,2]
[423407949,1780086642000,-1027.08,0.00010948,2]
[423407938,1780086642000,-500.0,0.00010948,2]
[423407953,1780086642000,-228.91289303,0.00011035,2]
[423407962,1780086642000,-500.0,0.00011094,2]
[423407964,1780086642000,-12161.88,0.00011094,2]
[423407963,1780086642000,-500.0,0.00011094,2]
[423407965,1780086642000,-2688.69,0.00011094,2]
[423407966,1780086642000,-500.0,0.00011095,2]
[423407967,1780086642000,-500.0,0.00011095,2]
[423407975,1780086642000,-652.94,0.00011095,2]
[423407973,1780086642000,-500.0,0.00011095,2]
[423407969,1780086642000,-992.15,0.00011095,2]
[423407974,1780086642000,-500.0,0.00011095,2]
[423407977,1780086642000,-2304.8,0.00011095,2]
[423407976,1780086642000,-766.88,0.00011095,2]
[423407971,1780086642000,-674.75,0.00011095,2]
[423407952,1780086642000,-500.0,0.00010949,2]
[423407931,1780086642000,-766.88,0.00010821,2]
[423407912,1780086642000,-500.0,0.0001082,2]
[423407943,1780086642000,-500.0,0.00010948,2]
[423407907,1780086642000,-500.0,0.00010674,2]
[423407906,1780086642000,-500.93,0.00010674,2]
[423407903,1780086642000,-500.0,0.00010674,2]
[423407911,1780086642000,-500.0,0.00010675,2]
[423407910,1780086642000,-1274.28,0.00010674,2]
[423407909,1780086642000,-650.44,0.00010674,2]
[423407978,1780086642000,-1631.26,0.00011095,2]
[423407914,1780086642000,-500.0,0.0001082,2]
[423407937,1780086642000,-1562.37,0.00010948,2]
[423407916,1780086642000,-513.74,0.0001082,2]
[423407918,1780086642000,-500.0,0.0001082,2]
[423407930,1780086642000,-652.94,0.00010821,2]
[423407922,1780086642000,-12161.88,0.0001082,2]
[423407919,1780086642000,-500.0,0.0001082,2]
[423407913,1780086642000,-1566.91,0.0001082,2]
[423407923,1780086642000,-2688.69,0.0001082,2]
[423407929,1780086642000,-500.0,0.00010821,2]
[423407934,1780086642000,-500.0,0.00010821,2]
[423407941,1780086642000,-751.15,0.00010948,2]
[423407939,1780086642000,-557.81,0.00010948,2]
[423407940,1780086642000,-500.0,0.00010948,2]
[423407942,1780086642000,-642.67033973,0.00010948,2]
[423407933,1780086642000,-1631.26,0.00010821,2]
[423407924,1780086642000,-500.0,0.00010821,2]
[423407927,1780086642000,-674.75,0.00010821,2]
[423407921,1780086642000,-500.0,0.0001082,2]
[423407926,1780086642000,-992.15,0.00010821,2]
[423407925,1780086642000,-500.0,0.00010821,2]
[423407928,1780086642000,-500.0,0.00010821,2]
[423407932,1780086642000,-2304.8,0.00010821,2]
[423408020,1780086643000,-500.0,0.0001127,2]
[423408023,1780086643000,-500.0,0.0001127,2]
[423408018,1780086643000,-500.0,0.0001127,2]
[423408016,1780086643000,-258.72866872,0.0001127,2]
[423408032,1780086643000,-500.0,0.0001127,2]
[423408025,1780086643000,-500.0,0.0001127,2]
[423408028,1780086643000,-500.0,0.0001127,2]
[423408029,1780086643000,-500.0,0.0001127,2]
[423408026,1780086643000,-500.58349877,0.0001127,2]
[423408015,1780086643000,-500.0,0.0001127,2]
[423408009,1780086643000,-500.0,0.0001127,2]
[423408027,1780086643000,-500.0,0.0001127,2]
[423408024,1780086643000,-500.64269631,0.0001127,2]
[423408058,1780086643000,-500.0,0.0001127,2]
[423408035,1780086643000,-500.0,0.0001127,2]
[423408038,1780086643000,-500.0,0.0001127,2]
[423408044,1780086643000,-500.0,0.0001127,2]
[423408033,1780086643000,-500.0,0.0001127,2]
[423408046,1780086643000,-500.0,0.0001127,2]
[423408040,1780086643000,-500.0,0.0001127,2]
[423408048,1780086643000,-500.0,0.0001127,2]
[423408042,1780086643000,-500.0,0.0001127,2]
[423408050,1780086643000,-1898.52,0.0001127,2]
[423408052,1780086643000,-500.0,0.0001127,2]
[423408054,1780086643000,-500.0,0.0001127,2]
[423408060,1780086643000,-2157.38,0.0001127,2]
[423408056,1780086643000,-500.0,0.0001127,2]
[423408010,1780086643000,-500.0,0.0001127,2]
[423408022,1780086643000,-500.0,0.0001127,2]
[423408013,1780086643000,-500.0,0.0001127,2]
[423407994,1780086643000,-500.0,0.0001127,2]
[423408011,1780086643000,-500.66049132,0.0001127,2]
[423408062,1780086643000,-500.0,0.0001127,2]
[423407989,1780086643000,-558.53,0.00011222,2]
[423407991,1780086643000,-650.44,0.00011222,2]
[423407980,1780086643000,-500.0,0.00011095,2]
[423407981,1780086643000,-693.71,0.00011222,2]
[423407990,1780086643000,-1027.08,0.00011222,2]
[423407983,1780086643000,-557.81,0.00011222,2]
[423407982,1780086643000,-1562.37,0.00011222,2]
[423407984,1780086643000,-500.0,0.00011222,2]
[423407985,1780086643000,-751.15,0.00011222,2]
[423407988,1780086643000,-500.93,0.00011222,2]
[423407986,1780086643000,-500.0,0.00011222,2]
[423407987,1780086643000,-622.62,0.00011222,2]
[423407992,1780086643000,-1274.28,0.00011222,2]
[423407993,1780086643000,-500.0,0.0001127,2]
[423407996,1780086643000,-500.0,0.0001127,2]
[423407995,1780086643000,-500.0,0.0001127,2]
[423408000,1780086643000,-284.13897344,0.0001127,2]
[423408003,1780086643000,-484.56854257,0.0001127,2]
[423407997,1780086643000,-500.0,0.0001127,2]
[423407998,1780086643000,-500.0,0.0001127,2]
[423407999,1780086643000,-500.0,0.0001127,2]
[423408001,1780086643000,-500.0,0.0001127,2]
[423408002,1780086643000,-500.0,0.0001127,2]
[423408005,1780086643000,-500.0,0.0001127,2]
[423408006,1780086643000,-555.07050498,0.0001127,2]
[423408004,1780086643000,-500.0,0.0001127,2]
[423408007,1780086643000,-500.0,0.0001127,2]
[423408008,1780086643000,-500.0,0.0001127,2]
[423408012,1780086643000,-500.0,0.0001127,2]
[423408072,1780086643000,-500.0,0.0001127,2]
[423407979,1780086643000,-500.0,0.00011095,2]
[423408066,1780086643000,-500.0,0.0001127,2]
[423408136,1780086643000,-557.81,0.00011496,2]
[423408138,1780086643000,-500.0,0.00011496,2]
[423408139,1780086643000,-751.15,0.00011496,2]
[423408141,1780086643000,-622.62,0.00011496,2]
[423408151,1780086643000,-500.0,0.00011544,2]
[423408140,1780086643000,-500.0,0.00011496,2]
[423408143,1780086643000,-1027.08,0.00011496,2]
[423408149,1780086643000,-500.0,0.00011544,2]
[423408152,1780086643000,-500.0,0.00011544,2]
[423408142,1780086643000,-500.93,0.00011496,2]
[423408144,1780086643000,-650.44,0.00011496,2]
[423408147,1780086643000,-296.83241481,0.00011534,2]
[423408148,1780086643000,-500.0,0.00011544,2]
[423408150,1780086643000,-500.0,0.00011544,2]
[423408145,1780086643000,-1274.28,0.00011496,2]
[423408153,1780086643000,-500.0,0.00011544,2]
[423408155,1780086643000,-500.0,0.00011544,2]
[423408156,1780086643000,-500.0,0.00011544,2]
[423408157,1780086643000,-500.0,0.00011544,2]
[423408158,1780086643000,-500.0,0.00011544,2]
[423408162,1780086643000,-500.0,0.00011544,2]
[423408161,1780086643000,-500.0,0.00011544,2]
[423408154,1780086643000,-500.0,0.00011544,2]
[423408163,1780086643000,-500.0,0.00011544,2]
[423408164,1780086643000,-500.0,0.00011544,2]
[423408159,1780086643000,-500.0,0.00011544,2]
[423408160,1780086643000,-500.0,0.00011544,2]
[423408165,1780086643000,-500.0,0.00011544,2]
[423408074,1780086643000,-680.05,0.0001127,2]
[423408134,1780086643000,-1562.37,0.00011496,2]
[423408126,1780086643000,-500.0,0.00011369,2]
[423408146,1780086643000,-172.74401743,0.00011534,2]
[423408132,1780086643000,-693.71,0.00011496,2]
[423408128,1780086643000,-500.0,0.00011369,2]
[423408076,1780086643000,-500.0,0.0001127,2]
[423408068,1780086643000,-739.95,0.0001127,2]
[423408078,1780086643000,-500.0,0.0001127,2]
[423408064,1780086643000,-881.34,0.0001127,2]
[423408070,1780086643000,-593.57,0.0001127,2]
[423408081,1780086643000,-1099.4086,0.0001127,2]
[423408083,1780086643000,-500.0,0.0001127,2]
[423408085,1780086643000,-500.0,0.0001127,2]
[423408087,1780086643000,-500.0,0.00011368,2]
[423408089,1780086643000,-1566.91,0.00011368,2]
[423408093,1780086643000,-513.74,0.00011368,2]
[423408091,1780086643000,-500.0,0.00011368,2]
[423408105,1780086643000,-500.0,0.00011369,2]
[423408108,1780086643000,-992.15,0.00011369,2]
[423408079,1780086643000,-500.0,0.0001127,2]
[423408101,1780086643000,-12161.88,0.00011368,2]
[423408097,1780086643000,-500.0,0.00011368,2]
[423408122,1780086643000,-2304.8,0.00011369,2]
[423408124,1780086643000,-1631.26,0.00011369,2]
[423408120,1780086643000,-766.88,0.00011369,2]
[423408119,1780086643000,-652.94,0.00011369,2]
[423408116,1780086643000,-500.0,0.00011369,2]
[423408130,1780086643000,-864.0,0.00011483,2]
[423408110,1780086643000,-674.75,0.00011369,2]
[423408106,1780086643000,-508.72528545,0.00011369,2]
[423408103,1780086643000,-2688.69,0.00011368,2]
[423408099,1780086643000,-500.0,0.00011368,2]
[423408095,1780086643000,-500.0,0.00011368,2]
[423408113,1780086643000,-500.0,0.00011369,2]
[423408213,1780086644000,-557.81,0.0001177,2]
[423408211,1780086644000,-693.71,0.0001177,2]
[423408210,1780086644000,-293.66482962,0.00011753,2]
[423408206,1780086644000,-2304.8,0.00011643,2]
[423408195,1780086644000,-500.0,0.00011642,2]
[423408208,1780086644000,-500.0,0.00011643,2]
[423408200,1780086644000,-992.15,0.00011643,2]
[423408205,1780086644000,-766.88,0.00011643,2]
[423408196,1780086644000,-500.0,0.00011642,2]
[423408198,1780086644000,-2688.69,0.00011642,2]
[423408191,1780086644000,-1566.91,0.00011642,2]
[423408216,1780086644000,-167.53,0.0001177,2]
[423408207,1780086644000,-1631.26,0.00011643,2]
[423408217,1780086644000,-622.62,0.0001177,2]
[423408230,1780086644000,-485.65810546,0.00011816,2]
[423408209,1780086644000,-500.0,0.00011643,2]
[423408215,1780086644000,-751.15,0.0001177,2]
[423408214,1780086644000,-500.0,0.0001177,2]
[423408219,1780086644000,-1027.08,0.0001177,2]
[423408229,1780086644000,-500.0,0.00011816,2]
[423408218,1780086644000,-500.93,0.0001177,2]
[423408220,1780086644000,-650.44,0.0001177,2]
[423408224,1780086644000,-500.99186555,0.00011816,2]
[423408221,1780086644000,-1274.28,0.0001177,2]
[423408227,1780086644000,-500.0,0.00011816,2]
[423408226,1780086644000,-500.0,0.00011816,2]
[423408223,1780086644000,-500.0,0.00011816,2]
[423408194,1780086644000,-500.0,0.00011642,2]
[423408212,1780086644000,-1562.37,0.0001177,2]
[423408197,1780086644000,-12161.88,0.00011642,2]
[423408166,1780086644000,-500.0,0.00011544,2]
[423408201,1780086644000,-674.75,0.00011643,2]
[423408178,1780086644000,-881.34,0.00011544,2]
[423408167,1780086644000,-500.0,0.00011544,2]
[423408177,1780086644000,-500.0,0.00011544,2]
[423408168,1780086644000,-500.0,0.00011544,2]
[423408169,1780086644000,-500.0,0.00011544,2]
[423408176,1780086644000,-2157.38,0.00011544,2]
[423408171,1780086644000,-1898.52,0.00011544,2]
[423408174,1780086644000,-500.0,0.00011544,2]
[423408175,1780086644000,-500.0,0.00011544,2]
[423408172,1780086644000,-500.0,0.00011544,2]
[423408170,1780086644000,-500.0,0.00011544,2]
[423408173,1780086644000,-500.0,0.00011544,2]
[423408179,1780086644000,-500.0,0.00011544,2]
[423408182,1780086644000,-500.0,0.00011544,2]
[423408184,1780086644000,-500.0,0.00011544,2]
[423408181,1780086644000,-593.57,0.00011544,2]
[423408183,1780086644000,-680.05,0.00011544,2]
[423408180,1780086644000,-739.95,0.00011544,2]
[423408188,1780086644000,-500.0,0.00011544,2]
[423408186,1780086644000,-500.0,0.00011544,2]
[423408187,1780086644000,-1099.4086,0.00011544,2]
[423408189,1780086644000,-500.0,0.00011544,2]
[423408185,1780086644000,-500.0,0.00011544,2]
[423408190,1780086644000,-500.0,0.00011642,2]
[423408192,1780086644000,-500.0,0.00011642,2]
[423408204,1780086644000,-652.94,0.00011643,2]
[423408202,1780086644000,-500.0,0.00011643,2]
[423408203,1780086644000,-500.0,0.00011643,2]
[423408199,1780086644000,-500.0,0.00011643,2]
[423408193,1780086644000,-513.74,0.00011642,2]
[423408228,1780086644000,-500.0,0.00011816,2]
[423408225,1780086644000,-500.9549049,0.00011816,2]
[423408232,1780086644000,-500.0,0.00011816,2]
[423408264,1780086644000,-500.0,0.00011816,2]
[423408265,1780086644000,-500.0,0.00011816,2]
[423408263,1780086644000,-500.40261173,0.00011816,2]
[423408269,1780086644000,-500.0,0.00011816,2]
[423408268,1780086644000,-500.0,0.00011816,2]
[423408281,1780086644000,-500.3675931,0.00011817,2]
[423408271,1780086644000,-500.0,0.00011816,2]
[423408270,1780086644000,-500.0,0.00011816,2]
[423408275,1780086644000,-500.0,0.00011817,2]
[423408274,1780086644000,-500.0,0.00011816,2]
[423408273,1780086644000,-500.0,0.00011816,2]
[423408272,1780086644000,-188.58231882,0.00011816,2]
[423408282,1780086644000,-500.0,0.00011817,2]
[423408262,1780086644000,-500.0,0.00011816,2]
[423408280,1780086644000,-500.0,0.00011817,2]
[423408279,1780086644000,-500.0,0.00011817,2]
[423408276,1780086644000,-500.0,0.00011817,2]
[423408277,1780086644000,-501.37878972,0.00011817,2]
[423408283,1780086644000,-500.0,0.00011817,2]
[423408285,1780086644000,-502.43579803,0.00011817,2]
[423408288,1780086644000,-500.0,0.00011817,2]
[423408289,1780086644000,-500.0,0.00011817,2]
[423408284,1780086644000,-525.99,0.00011817,2]
[423408286,1780086644000,-500.33936349,0.00011817,2]
[423408287,1780086644000,-500.0,0.00011817,2]
[423408290,1780086644000,-500.0,0.00011817,2]
[423408292,1780086644000,-500.0,0.00011818,2]
[423408222,1780086644000,-500.0,0.00011816,2]
[423408278,1780086644000,-532.03,0.00011817,2]
[423408261,1780086644000,-500.0,0.00011816,2]
[423408291,1780086644000,-500.0,0.00011817,2]
[423408266,1780086644000,-500.0,0.00011816,2]
[423408267,1780086644000,-500.0,0.00011816,2]
[423408233,1780086644000,-500.0,0.00011816,2]
[423408234,1780086644000,-500.0,0.00011816,2]
[423408231,1780086644000,-500.0,0.00011816,2]
[423408235,1780086644000,-334.38033913,0.00011816,2]
[423408239,1780086644000,-500.0,0.00011816,2]
[423408240,1780086644000,-500.0,0.00011816,2]
[423408236,1780086644000,-500.0,0.00011816,2]
[423408238,1780086644000,-500.0,0.00011816,2]
[423408241,1780086644000,-500.0,0.00011816,2]
[423408237,1780086644000,-500.0,0.00011816,2]
[423408243,1780086644000,-500.0,0.00011816,2]
[423408244,1780086644000,-500.0,0.00011816,2]
[423408255,1780086644000,-500.0,0.00011816,2]
[423408242,1780086644000,-500.0,0.00011816,2]
[423408245,1780086644000,-500.0,0.00011816,2]
[423408259,1780086644000,-500.0,0.00011816,2]
[423408256,1780086644000,-500.0,0.00011816,2]
[423408260,1780086644000,-500.0,0.00011816,2]
[423408257,1780086644000,-500.0,0.00011816,2]
[423408254,1780086644000,-500.0,0.00011816,2]
[423408248,1780086644000,-500.0,0.00011816,2]
[423408258,1780086644000,-500.0,0.00011816,2]
[423408253,1780086644000,-500.0,0.00011816,2]
[423408250,1780086644000,-500.0,0.00011816,2]
[423408247,1780086644000,-500.0,0.00011816,2]
[423408246,1780086644000,-500.0,0.00011816,2]
[423408252,1780086644000,-500.0,0.00011816,2]
[423408251,1780086644000,-500.0,0.00011816,2]
[423408249,1780086644000,-500.0,0.00011816,2]
[423408335,1780086645000,-1566.91,0.00011916,2]
[423408337,1780086645000,-513.74,0.00011916,2]
[423408336,1780086645000,-500.0,0.00011916,2]
[423408330,1780086645000,-500.0,0.00011818,2]
[423408329,1780086645000,-500.0,0.00011818,2]
[423408325,1780086645000,-593.57,0.00011818,2]
[423408326,1780086645000,-500.0,0.00011818,2]
[423408321,1780086645000,-500.0,0.00011818,2]
[423408324,1780086645000,-739.95,0.00011818,2]
[423408331,1780086645000,-1099.4086,0.00011818,2]
[423408323,1780086645000,-500.0,0.00011818,2]
[423408328,1780086645000,-500.0,0.00011818,2]
[423408338,1780086645000,-500.0,0.00011916,2]
[423408354,1780086645000,-1562.37,0.00012044,2]
[423408339,1780086645000,-12161.88,0.00011916,2]
[423408340,1780086645000,-2688.69,0.00011916,2]
[423408342,1780086645000,-992.15,0.00011917,2]
[423408348,1780086645000,-1631.26,0.00011917,2]
[423408347,1780086645000,-2304.8,0.00011917,2]
[423408353,1780086645000,-693.71,0.00012044,2]
[423408351,1780086645000,-293.66482962,0.00012027,2]
[423408352,1780086645000,-250.07286682,0.00012034,2]
[423408344,1780086645000,-500.0,0.00011917,2]
[423408346,1780086645000,-766.88,0.00011917,2]
[423408343,1780086645000,-674.75,0.00011917,2]
[423408345,1780086645000,-652.94,0.00011917,2]
[423408327,1780086645000,-680.05,0.00011818,2]
[423408341,1780086645000,-500.0,0.00011917,2]
[423408333,1780086645000,-500.0,0.00011818,2]
[423408316,1780086645000,-500.0,0.00011818,2]
[423408334,1780086645000,-500.0,0.00011916,2]
[423408294,1780086645000,-500.0,0.00011818,2]
[423408293,1780086645000,-500.0,0.00011818,2]
[423408298,1780086645000,-500.0,0.00011818,2]
[423408296,1780086645000,-500.0,0.00011818,2]
[423408307,1780086645000,-500.0,0.00011818,2]
[423408306,1780086645000,-500.0,0.00011818,2]
[423408297,1780086645000,-500.0,0.00011818,2]
[423408295,1780086645000,-500.0,0.00011818,2]
[423408305,1780086645000,-500.0,0.00011818,2]
[423408301,1780086645000,-500.0,0.00011818,2]
[423408304,1780086645000,-500.0,0.00011818,2]
[423408302,1780086645000,-500.0,0.00011818,2]
[423408299,1780086645000,-500.0,0.00011818,2]
[423408322,1780086645000,-881.34,0.00011818,2]
[423408303,1780086645000,-500.0,0.00011818,2]
[423408319,1780086645000,-500.0,0.00011818,2]
[423408310,1780086645000,-500.0,0.00011818,2]
[423408311,1780086645000,-500.0,0.00011818,2]
[423408318,1780086645000,-500.0,0.00011818,2]
[423408309,1780086645000,-500.0,0.00011818,2]
[423408308,1780086645000,-500.0,0.00011818,2]
[423408313,1780086645000,-500.0,0.00011818,2]
[423408314,1780086645000,-500.0,0.00011818,2]
[423408317,1780086645000,-500.0,0.00011818,2]
[423408320,1780086645000,-2157.38,0.00011818,2]
[423408312,1780086645000,-500.0,0.00011818,2]
[423408315,1780086645000,-1898.52,0.00011818,2]
[423408332,1780086645000,-500.34368594,0.00011818,2]
[423408300,1780086645000,-500.0,0.00011818,2]
[423408350,1780086645000,-150.92,0.00012,2]
[423408349,1780086645000,-500.0,0.00011917,2]
[423408367,1780086645000,-645.89304485,0.0001209,2]
[423408394,1780086645000,-500.0,0.0001209,2]
[423408387,1780086645000,-500.0,0.0001209,2]
[423408388,1780086645000,-500.0,0.0001209,2]
[423408389,1780086645000,-500.0,0.0001209,2]
[423408397,1780086645000,-500.0,0.0001209,2]
[423408399,1780086645000,-500.0,0.0001209,2]
[423408398,1780086645000,-500.0,0.0001209,2]
[423408400,1780086645000,-500.0,0.0001209,2]
[423408403,1780086645000,-500.0,0.0001209,2]
[423408402,1780086645000,-500.0,0.0001209,2]
[423408408,1780086645000,-500.0,0.0001209,2]
[423408410,1780086645000,-500.0,0.00012091,2]
[423408401,1780086645000,-500.0,0.0001209,2]
[423408392,1780086645000,-500.0,0.0001209,2]
[423408406,1780086645000,-500.0,0.0001209,2]
[423408407,1780086645000,-500.0,0.0001209,2]
[423408405,1780086645000,-500.0,0.0001209,2]
[423408414,1780086645000,-500.0,0.00012091,2]
[423408416,1780086645000,-500.0,0.00012091,2]
[423408415,1780086645000,-501.77899763,0.00012091,2]
[423408413,1780086645000,-532.03,0.00012091,2]
[423408418,1780086645000,-500.0,0.00012091,2]
[423408417,1780086645000,-525.99,0.00012091,2]
[423408419,1780086645000,-500.0,0.00012091,2]
[423408422,1780086645000,-500.0,0.00012091,2]
[423408420,1780086645000,-500.0,0.00012091,2]
[423408421,1780086645000,-500.0,0.00012091,2]
[423408356,1780086645000,-500.0,0.00012044,2]
[423408404,1780086645000,-500.0,0.0001209,2]